bitfinex/quotes_SOLUSD_20251212
["timestamp","ask_amount","ask_price","bid_price","bid_amount"]
[1765552125532,7.98,137.36,137.34,7.87857127]
[1765552126230,7.98,137.36,137.33,25.48597462]
[1765552126445,8.69,137.36,137.33,15.16022055]
[1765552126647,8.69,137.36,137.31,15.16136203]
[1765552126856,8.69,137.36,137.32,7.87857127]
[1765552127749,7.98,137.36,137.33,8.58857127]
[1765552127956,7.98,137.36,137.34,7.87857127]
[1765552128248,7.98,137.36,137.33,7.87857127]
[1765552128451,7.98,137.36,137.33,8.59857127]
[1765552128931,7.98,137.36,137.35,7.87857127]
[1765552129126,7.98,137.39,137.34,15.87977121]
[1765552129326,8.80994492,137.38,137.29,0.72]
[1765552129527,9.52994492,137.38,137.32,7.28192161]
[1765552129747,0.72,137.37,137.32,7.28192161]
[1765552129922,0.72,137.37,137.29,0.72]
[1765552129923,8.80994492,137.36,137.31,7.28258839]
[1765552130127,8.7,137.35,137.31,7.28258839]
[1765552130328,16.68851619,137.34,137.27,18.93177973]
[1765552130533,9.52994492,137.34,137.29,7.28349285]
[1765552130745,0.72,137.33,137.29,7.28349285]
[1765552130952,0.72,137.33,137.29,7.87857127]
[1765552132136,0.72,137.33,137.29,15.16190861]
[1765552132747,8.7,137.35,137.3,0.72]
[1765552132929,7.98,137.34,137.3,8.59857127]
[1765552133126,8.7,137.34,137.3,7.87857127]
[1765552133329,0.72,137.33,137.29,33.37153786]
[1765552133760,7.98,137.34,137.29,34.09153786]
[1765552133964,8.7,137.34,137.29,26.21296659]
[1765552134259,0.72,137.33,137.29,7.87857127]
[1765552134548,8.7,137.34,137.3,7.87857127]
[1765552135050,8.7,137.34,137.3,8.59857127]
[1765552136034,7.98,137.34,137.31,0.72]
[1765552136234,0.72,137.33,137.27,26.2167023]
[1765552136456,0.72,137.33,137.28,7.87857127]
[1765552136954,0.72,137.33,137.27,26.2167023]
[1765552137156,0.72,137.33,137.29,7.87857127]
[1765552137661,26.07996116,137.36,137.27,25.4967023]
[1765552137662,0.72,137.36,137.32,7.87857127]
[1765552138238,0.72,137.36,137.33,7.28173013]
[1765552138646,0.72,137.36,137.32,7.28216269]
[1765552139766,0.72,137.36,137.32,8.00216269]
[1765552140061,0.72,137.35,137.32,7.28216269]
[1765552140252,8.7,137.37,137.32,15.88073396]
[1765552140565,88.0470912,137.41,137.34,7.87857127]
[1765552140566,0.72,137.41,137.34,7.87857127]
[1765552140868,75.0,137.44,137.39,7.87857127]
[1765552140869,0.72,137.44,137.39,7.87857127]
[1765552141045,8.05134298,137.48,137.42,7.87857127]
[1765552141046,5.94169039,137.48,137.42,7.87857127]
[1765552141367,0.72,137.47,137.43,7.87857127]
[1765552141555,0.72,137.47,137.41,8.59857127]
[1765552141758,0.72,137.47,137.42,7.87857127]
[1765552142271,0.72,137.47,137.44,7.27590221]
[1765552142491,7.87857127,137.45,137.37,0.72]
[1765552142646,7.87857127,137.45,137.34,0.72]
[1765552142647,8.80994492,137.43,137.34,0.72]
[1765552142848,7.87857127,137.42,137.36,7.28013977]
[1765552143058,8.59857127,137.42,137.36,7.28013977]
[1765552143459,0.72,137.42,137.36,7.28013977]
[1765552143774,16.68851619,137.39,137.32,26.90544595]
[1765552143946,16.68851619,137.39,137.33,7.28133053]
[1765552143947,7.87857127,137.38,137.33,7.28133053]
[1765552144140,0.72,137.38,137.32,7.87857127]
[1765552144345,0.72,137.38,137.33,7.28173013]
[1765552144765,0.72,137.38,137.33,34.08462674]
[1765552144973,0.72,137.38,137.34,7.87857127]
[1765552145361,0.72,137.38,137.29,57.42401468]
[1765552145362,8.80994492,137.37,137.31,18.20667805]
[1765552145671,7.99914776,137.38,137.32,33.36642942]
[1765552145843,7.99922827,137.38,137.32,33.36642942]
[1765552146048,15.87779954,137.38,137.32,25.48785815]
[1765552146389,8.59857127,137.37,137.31,7.28279076]
[1765552146553,0.72,137.37,137.31,15.16136203]
[1765552146754,0.72,137.37,137.32,7.87857127]
[1765552147057,8.80994492,137.38,137.33,7.87857127]
[1765552147255,9.52994492,137.38,137.33,7.87857127]
[1765552147574,9.52994492,137.38,137.26,0.72]
[1765552147575,91.68851619,137.34,137.26,0.72]
[1765552147772,8.80994492,137.32,137.26,8.00540149]
[1765552147952,8.80994492,137.32,137.27,7.28479605]
[1765552148155,9.52994492,137.32,137.27,7.87857127]
[1765552148356,0.72,137.31,137.26,15.88390114]
[1765552148695,15.8815065,137.31,137.25,7.87857127]
[1765552148867,15.8815065,137.31,137.25,15.16452545]
[1765552149068,0.72,137.3,137.25,15.16452545]
[1765552149375,8.59857127,137.3,137.25,7.28595418]
[1765552149588,16.68851619,137.28,137.2,18.94141419]
[1765552149873,8.7,137.29,137.21,0.72]
[1765552150079,7.98,137.29,137.25,7.87857127]
[1765552150248,7.98,137.29,137.26,15.1639457]
[1765552150448,7.98,137.29,137.26,7.28537443]
[1765552150649,7.98,137.29,137.26,15.1639457]
[1765552150850,7.98,137.29,137.26,7.28537443]
[1765552151069,7.98,137.29,137.26,15.1639457]
[1765552151490,7.98,137.29,137.26,33.3775549]
[1765552151850,7.98,137.29,137.26,34.0975549]
[1765552152044,7.98,137.29,137.27,7.87857127]
[1765552152245,0.72,137.31,137.26,33.3775549]
[1765552152463,0.72,137.31,137.26,18.2136092]
[1765552152665,0.72,137.31,137.26,26.09218047]
[1765552152852,0.72,137.31,137.26,7.87857127]
[1765552152853,8.00292994,137.31,137.26,7.87857127]
[1765552153053,7.98,137.32,137.27,7.87857127]
[1765552153254,7.98,137.32,137.28,7.87857127]
[1765552153759,8.7,137.32,137.28,7.87857127]
[1765552153955,0.72,137.31,137.25,25.50091073]
[1765552154269,0.72,137.31,137.26,7.87857127]
[1765552154464,0.72,137.31,137.27,15.16348421]
[1765552154859,0.72,137.31,137.27,7.28491294]
[1765552155079,0.72,137.31,137.27,15.16348421]
[1765552155461,0.72,137.31,137.27,7.28491294]
[1765552155982,8.59857127,137.31,137.27,7.28491294]
[1765552156155,8.59857127,137.31,137.26,7.28544368]
[1765552156485,0.72,137.3,137.24,0.1]
[1765552156674,7.87857127,137.27,137.24,0.1]
[1765552157071,8.59857127,137.27,137.24,0.1]
[1765552157387,0.72,137.26,137.24,0.1]
[1765552157763,7.87857127,137.27,137.24,0.1]
[1765552157957,8.59857127,137.27,137.24,0.1]
[1765552158162,7.87857127,137.27,137.24,0.1]
[1765552158379,16.68851619,137.25,137.24,0.1]
[1765552158580,17.36851619,137.25,137.24,0.1]
[1765552159280,25.63283933,137.25,137.24,0.1]
[1765552159779,25.34851619,137.25,137.24,0.1]
[1765552160383,32.91881382,137.25,137.24,0.1]
[1765552160701,120.96590502,137.25,137.24,1e-08]
[1765552160874,0.28432314,137.23,137.15,7.29115663]
[1765552161064,8.80994492,137.18,137.1,3.03027381]
[1765552161260,8.80994492,137.18,137.02,3.7958138]
[1765552161261,75.0,137.1,137.02,3.7958138]
[1765552161459,17.07426806,137.09,137.0,0.67]
[1765552161877,7.87857127,137.03,137.0,0.67]
[1765552162067,7.98,137.03,136.99,0.5]
[1765552162270,7.87857127,137.01,137.0,0.67]
[1765552162473,15.2188004,137.02,137.0,0.67]
[1765552162667,7.92059576,137.05,137.0,0.67]
[1765552162871,7.92059576,137.05,137.0,8.59059576]
[1765552162872,7.98,137.05,137.0,8.59059576]
[1765552163080,7.98,137.08,137.02,7.92059576]
[1765552163296,7.98,137.11,137.04,7.92059576]
[1765552163471,7.92059576,137.11,137.03,13.7170912]
[1765552163678,7.92059576,137.13,137.06,7.92059576]
[1765552164082,15.90059576,137.14,137.07,8.59059576]
[1765552164393,15.27202456,137.14,137.08,0.67]
[1765552164688,7.92059576,137.13,137.08,0.67]
[1765552164883,23.19262032,137.14,137.08,0.67]
[1765552165085,7.92059576,137.13,137.08,0.67]
[1765552165591,7.92059576,137.13,137.05,0.67]
[1765552165592,7.92059576,137.1,137.05,0.67]
[1765552165914,7.29139299,137.15,137.09,7.92059576]
[1765552166089,15.2702238,137.17,137.08,7.29469227]
[1765552166263,36.43749605,137.23,137.14,7.92059576]
[1765552166461,15.2675674,137.22,137.15,7.92059576]
[1765552166662,7.98,137.21,137.16,7.92059576]
[1765552166863,7.98,137.21,137.13,0.28432314]
[1765552167094,7.98,137.21,137.18,7.92059576]
[1765552167267,17.48,137.26,137.13,0.28432314]
[1765552167268,7.92059576,137.26,137.15,13.0470912]
[1765552167592,7.92059576,137.22,137.16,7.92059576]
[1765552167788,7.92059576,137.2,137.15,0.67]
[1765552167996,7.92059576,137.2,137.15,8.59059576]
[1765552168464,7.98,137.21,137.16,8.59059576]
[1765552168794,7.98,137.21,137.16,0.67]
[1765552168959,7.92059576,137.19,137.14,0.67]
[1765552169459,33.48849217,137.21,137.14,15.88232318]
[1765552169460,7.92059576,137.2,137.14,15.88232318]
[1765552169685,7.92059576,137.2,137.14,7.96172742]
[1765552169876,7.92059576,137.17,137.12,0.67]
[1765552170078,7.98,137.17,137.12,0.67]
[1765552170387,7.98,137.17,137.12,7.96282934]
[1765552170388,23.19096974,137.17,137.12,7.96282934]
[1765552170594,7.98,137.17,137.14,7.92059576]
[1765552170773,7.98,137.2,137.15,7.92059576]
[1765552171090,7.98,137.2,137.16,7.92059576]
[1765552171291,7.92059576,137.24,137.18,7.92059576]
[1765552171489,7.98,137.23,137.18,7.92059576]
[1765552171684,7.92059576,137.22,137.18,0.67]
[1765552171869,7.98,137.23,137.15,0.67]
[1765552172066,7.92059576,137.19,137.15,0.67]
[1765552172267,7.98,137.19,137.15,0.67]
[1765552172465,7.98,137.22,137.17,15.21081956]
[1765552172983,15.2677075,137.22,137.18,0.67]
[1765552173190,7.98,137.22,137.18,0.67]
[1765552173377,7.98,137.22,137.18,8.59059576]
[1765552173575,7.98,137.22,137.19,0.67]
[1765552173780,23.1866187,137.25,137.2,7.92059576]
[1765552174073,12.82762493,137.24,137.19,0.67]
[1765552174483,12.82762493,137.24,137.13,21.0270912]
[1765552174484,7.28703636,137.23,137.16,7.96071346]
[1765552174690,25.50462726,137.23,137.16,0.67]
[1765552174994,12.82762493,137.19,137.16,0.67]
[1765552175308,12.82762493,137.17,137.09,18.23519207]
[1765552175598,8.80994492,137.18,137.1,0.67]
[1765552175788,0.28432314,137.17,137.1,0.67]
[1765552175974,12.82762493,137.13,137.1,0.67]
[1765552176176,0.28432314,137.17,137.1,0.67]
[1765552176177,12.82762493,137.12,137.1,0.67]
[1765552176381,7.29235032,137.13,137.08,0.67]
[1765552176607,15.27197894,137.14,137.08,7.9648978]
[1765552176779,15.27197894,137.14,137.09,12.82762493]
[1765552176780,7.98,137.14,137.09,12.82762493]
[1765552176984,7.98,137.14,137.11,12.82762493]
[1765552177511,12.82762493,137.16,137.12,0.67]
[1765552177703,12.82762493,137.13,137.09,0.67]
[1765552177996,12.82762493,137.12,137.09,0.67]
[1765552178199,12.82762493,137.11,137.07,7.29546515]
[1765552178402,12.82762493,137.12,137.08,7.96482781]
[1765552178777,12.82762493,137.12,137.09,0.67]
[1765552179197,7.98,137.13,137.09,0.67]
[1765552179498,12.82762493,137.12,137.09,0.67]
[1765552179700,15.27252424,137.13,137.09,0.67]
[1765552179903,7.98,137.13,137.09,0.67]
[1765552180273,12.82762493,137.14,137.09,0.67]
[1765552180480,12.82762493,137.13,137.09,0.67]
[1765552180886,12.82762493,137.11,137.07,7.29541402]
[1765552181089,12.82762493,137.09,137.06,0.67]
[1765552181395,20.80762493,137.1,137.06,7.96556726]
[1765552181601,7.98,137.1,137.06,0.67]
[1765552181807,7.98,137.1,137.08,7.29492457]
[1765552181997,7.98,137.1,137.07,0.67]
[1765552182373,7.98,137.1,137.08,7.29487173]
[1765552182798,7.98,137.1,137.09,0.67]
[1765552183304,7.98,137.1,137.07,7.29540271]
[1765552183497,7.98,137.1,137.08,0.67]
[1765552184802,7.98,137.1,137.09,7.29447808]
[1765552184973,20.12088281,137.12,137.08,0.67]
[1765552185180,12.82762493,137.11,137.08,0.67]
[1765552185398,12.82762493,137.12,137.08,7.96498689]
[1765552185793,12.82762493,137.12,137.09,0.67]
[1765552186226,20.80762493,137.13,137.09,0.67]
[1765552186400,7.98,137.13,137.09,13.49762493]
[1765552186816,7.98,137.13,137.1,20.79157095]
[1765552187097,12.82762493,137.15,137.1,7.96394602]
[1765552187319,12.82762493,137.12,137.06,7.98]
[1765552187479,20.80762493,137.12,137.08,7.29459592]
[1765552187687,20.80762493,137.12,137.09,0.67]
[1765552187915,7.98,137.12,137.09,7.96429271]
[1765552188123,20.80762493,137.12,137.09,0.67]
[1765552188280,12.82762493,137.11,137.09,0.67]
[1765552188486,20.80762493,137.12,137.09,7.9644477]
[1765552188701,7.98,137.12,137.09,7.9644477]
[1765552189005,7.98,137.12,137.1,0.69]
[1765552189983,7.98,137.12,137.1,13.51762493]
[1765552190205,7.98,137.12,137.11,0.69]
[1765552190508,7.98,137.15,137.11,0.69]
[1765552190705,7.98,137.15,137.12,7.29288214]
[1765552191084,7.98,137.15,137.13,0.69]
[1765552191299,12.82762493,137.14,137.11,7.29334074]
[1765552191496,7.98,137.15,137.12,0.69]
[1765552192009,7.98,137.15,137.12,13.51762493]
[1765552192411,7.98,137.15,137.13,0.69]
[1765552192708,7.98,137.15,137.14,7.29181857]
[1765552192890,7.98,137.19,137.14,20.1194435]
[1765552193093,7.98,137.19,137.15,0.69]
[1765552193299,20.80762493,137.19,137.15,0.69]
[1765552193600,12.82762493,137.17,137.13,7.98216883]
[1765552193794,12.82762493,137.17,137.14,0.69]
[1765552194309,7.98,137.19,137.14,13.51762493]
[1765552194488,7.98,137.19,137.14,0.69]
[1765552194489,12.82762493,137.18,137.14,0.69]
[1765552194688,20.80762493,137.19,137.15,0.69]
[1765552194884,28.09679649,137.19,137.15,7.98104501]
[1765552195111,12.82762493,137.16,137.13,0.69]
[1765552195608,7.98,137.16,137.13,7.98231877]
[1765552195910,7.98,137.16,137.13,13.51762493]
[1765552196113,7.98,137.16,137.14,7.98166184]
[1765552196415,20.80762493,137.16,137.13,7.98234484]
[1765552196609,7.98,137.16,137.13,13.51762493]
[1765552196807,7.98,137.16,137.14,7.98181857]
[1765552197209,7.98,137.16,137.15,0.69]
[1765552197911,7.98,137.16,137.13,7.29218334]
[1765552198117,7.98,137.16,137.13,7.98218334]
[1765552198412,7.98,137.19,137.14,0.69]
[1765552198610,20.80762493,137.19,137.14,0.69]
[1765552198816,20.80762493,137.19,137.15,7.29128691]
[1765552199004,28.09688346,137.19,137.16,0.69]
[1765552199595,7.98,137.19,137.16,0.69]
[1765552199792,7.98,137.19,137.16,13.51762493]
[1765552200026,18.21376584,137.26,137.18,12.82762493]
[1765552200186,12.82762493,137.24,137.18,12.82762493]
[1765552200386,12.82762493,137.24,137.14,38.56826516]
[1765552200387,12.82762493,137.21,137.14,25.52117396]
[1765552200606,75.0,137.27,137.19,12.82762493]
[1765552200607,8.80994492,137.27,137.19,12.82762493]
[1765552200812,7.28279076,137.31,137.24,20.11413032]
[1765552201008,13.02762493,137.33,137.27,12.82762493]
[1765552201257,13.02762493,137.33,137.28,12.82762493]
[1765552201258,7.48191436,137.33,137.28,12.82762493]
[1765552201720,12.82762493,137.31,137.26,0.69]
[1765552201895,20.30944348,137.33,137.27,0.69]
[1765552202220,7.48181855,137.33,137.27,0.69]
[1765552202404,12.82762493,137.32,137.27,0.69]
[1765552202591,12.82762493,137.3,137.24,20.80413032]
[1765552202789,20.11293356,137.27,137.21,0.69]
[1765552203033,20.80762493,137.27,137.22,7.28741106]
[1765552203326,12.82762493,137.25,137.21,0.69]
[1765552203614,12.82762493,137.24,137.21,0.69]
[1765552203801,33.47727093,137.27,137.21,0.69]
[1765552203992,7.98,137.27,137.22,12.82807283]
[1765552204193,12.82807283,137.26,137.21,7.977798]
[1765552204418,12.82807283,137.24,137.2,7.28848361]
[1765552204717,12.82807283,137.23,137.2,7.28848361]
[1765552204909,15.26639246,137.25,137.2,0.69]
[1765552205109,12.82807283,137.22,137.18,7.97927836]
[1765552205416,12.82807283,137.19,137.16,0.69]
[1765552205617,12.82807283,137.21,137.17,0.69]
[1765552205828,7.98,137.22,137.17,13.51807283]
[1765552206115,7.48,137.21,137.19,7.28915056]
[1765552206316,7.98,137.24,137.19,7.28915056]
[1765552206502,20.80807283,137.24,137.19,7.28915056]
[1765552206707,20.80807283,137.24,137.2,0.69]
[1765552206915,20.80807283,137.24,137.2,7.97852476]
[1765552207228,28.0946696,137.24,137.2,7.97852476]
[1765552207410,28.0946696,137.24,137.15,7.29089807]
[1765552207411,12.82807283,137.21,137.15,7.29089807]
[1765552207610,7.98,137.2,137.14,7.29147016]
[1765552207922,12.82807283,137.18,137.15,7.29119662]
[1765552208315,12.82807283,137.18,137.15,7.98119662]
[1765552208826,7.98,137.2,137.15,7.98119662]
[1765552208827,7.98,137.2,137.16,0.69]
[1765552209124,20.80807283,137.2,137.16,7.98053064]
[1765552209315,12.82807283,137.19,137.1,7.98]
[1765552209502,31.99027615,137.2,137.14,7.29180095]
[1765552209696,12.82807283,137.19,137.16,7.29061233]
[1765552209901,13.76870181,137.2,137.16,7.98061233]
[1765552210223,19.30807283,137.2,137.16,7.98061233]
[1765552210825,6.48,137.2,137.17,0.69]
[1765552211123,12.82807283,137.18,137.13,0.69]
[1765552211326,31.99037709,137.2,137.14,7.29163676]
[1765552211637,13.76880275,137.2,137.15,0.69]
[1765552211806,12.82807283,137.19,137.15,7.98114101]
[1765552212423,12.82807283,137.18,137.15,7.29114101]
[1765552212630,12.82807283,137.18,137.15,7.29124513]
[1765552212831,13.76880275,137.2,137.15,7.98124513]
[1765552213007,12.82807283,137.18,137.15,7.98124513]
[1765552213699,8.80994492,137.19,137.12,0.69]
[1765552213915,12.82807283,137.15,137.12,7.98250816]
[1765552214105,20.80807283,137.17,137.12,0.69]
[1765552214306,20.80807283,137.17,137.13,0.69]
[1765552214616,20.80807283,137.17,137.14,7.29145658]
[1765552214617,7.98,137.17,137.14,7.29145658]
[1765552214925,20.80807283,137.17,137.12,18.23127749]
[1765552215130,12.82807283,137.15,137.1,0.69]
[1765552215431,12.82807283,137.15,137.12,7.2928276]
[1765552215617,15.27033691,137.17,137.12,7.2928276]
[1765552215816,15.27033691,137.17,137.1,7.2936945]
[1765552215817,12.82807283,137.15,137.1,7.2936945]
[1765552216023,12.82807283,137.13,137.1,7.9836945]
[1765552216207,12.82807283,137.13,137.07,12.82807283]
[1765552216413,7.98,137.14,137.08,13.51807283]
[1765552216610,7.98,137.14,137.09,12.82807283]
[1765552216815,7.98,137.14,137.12,7.29287334]
[1765552217018,7.98,137.14,137.13,7.98235032]
[1765552217329,7.98,137.17,137.13,7.98235032]
[1765552217532,7.28876943,137.2,137.14,13.51807283]
[1765552217708,75.0,137.23,137.16,12.82807283]
[1765552217709,7.98,137.23,137.16,12.82807283]
[1765552217906,8.80994492,137.24,137.15,0.69]
[1765552218107,12.82807283,137.22,137.16,12.82807283]
[1765552218427,12.82807283,137.22,137.17,12.82807283]
[1765552218608,7.98,137.23,137.18,12.82807283]
[1765552219010,7.98,137.23,137.2,7.28862973]
[1765552219412,20.80807283,137.23,137.2,7.95862973]
[1765552219727,7.98,137.23,137.21,0.67]
[1765552219931,7.98,137.23,137.2,7.95862973]
[1765552220133,12.82807283,137.21,137.16,18.89570962]
[1765552220637,8.80994492,137.22,137.13,7.2919563]
[1765552220826,8.80994492,137.22,137.14,0.67]
[1765552221035,12.82807283,137.18,137.14,0.67]
[1765552221212,20.80807283,137.18,137.14,0.67]
[1765552221414,12.82807283,137.17,137.14,7.96165366]
[1765552221912,7.98,137.21,137.15,13.54807283]
[1765552222240,20.80807283,137.21,137.15,0.72]
[1765552222438,20.80807283,137.21,137.16,0.72]
[1765552222825,12.82807283,137.2,137.16,0.72]
[1765552223222,20.11685004,137.2,137.14,29.08474621]
[1765552223432,12.82807283,137.2,137.14,29.08474621]
[1765552223643,28.09640744,137.21,137.15,12.82807283]
[1765552223818,12.82807283,137.2,137.15,12.82807283]
[1765552224020,12.82807283,137.2,137.14,16.25667338]
[1765552224431,15.26833461,137.21,137.14,29.08474621]
[1765552224638,15.26833461,137.21,137.15,7.29128691]
[1765552224840,12.82807283,137.2,137.15,7.29128691]
[1765552225030,15.26833461,137.21,137.15,20.11935974]
[1765552225222,12.82807283,137.2,137.15,8.01128691]
[1765552225428,15.26833461,137.21,137.15,8.01128691]
[1765552225632,12.82807283,137.2,137.15,8.01128691]
[1765552225839,15.26833461,137.21,137.16,0.72]
[1765552225840,7.98,137.21,137.16,0.72]
[1765552226033,20.80807283,137.26,137.2,12.82807283]
[1765552226243,7.98,137.26,137.21,12.82807283]
[1765552226428,20.80807283,137.26,137.21,12.82807283]
[1765552226627,7.98,137.26,137.21,13.54807283]
[1765552226945,7.98,137.26,137.22,0.72]
[1765552227120,7.98,137.26,137.17,7.98]
[1765552227121,12.82807283,137.24,137.19,0.72]
[1765552227445,7.98,137.26,137.19,13.54807283]
[1765552227744,20.80807283,137.26,137.2,13.54807283]
[1765552227949,12.82807283,137.29,137.23,12.82807283]
[1765552228147,28.76173354,137.3,137.24,13.54807283]
[1765552228640,12.82807283,137.27,137.21,39.05641769]
[1765552228836,12.82807283,137.24,137.19,0.72]
[1765552229144,8.80994492,137.25,137.19,8.00878615]
[1765552229345,12.82807283,137.23,137.19,8.00878615]
[1765552229559,7.98,137.26,137.2,7.28862884]
[1765552229722,7.98,137.26,137.2,20.83670167]
[1765552229925,20.80807283,137.26,137.2,39.05827601]
[1765552230269,20.80807283,137.26,137.15,36.45643456]
[1765552230270,12.82807283,137.24,137.19,7.28897904]
[1765552230436,12.82807283,137.24,137.18,18.22366107]
[1765552230437,12.82807283,137.21,137.15,21.52807283]
[1765552230619,12.82807283,137.21,137.18,7.28923295]
[1765552230821,12.82807283,137.2,137.16,0.72]
[1765552231143,12.82807283,137.2,137.16,8.01042455]
[1765552231656,0.67,137.22,137.17,7.29006328]
[1765552231956,12.82807283,137.2,137.17,7.29006328]
[1765552232261,7.9580446,137.22,137.16,7.29056793]
[1765552232549,12.82807283,137.21,137.16,7.29056793]
[1765552232719,12.82807283,137.2,137.16,7.29056793]
[1765552232918,12.82807283,137.2,137.16,8.01056793]
[1765552233120,0.67,137.21,137.16,8.01056793]
[1765552233462,12.82807283,137.2,137.16,8.01056793]
[1765552233625,12.82807283,137.21,137.16,8.01056793]
[1765552233965,7.89891455,137.21,137.16,8.01056793]
[1765552234249,7.89891455,137.17,137.09,0.72]
[1765552234545,15.87891455,137.16,137.11,7.89891455]
[1765552234755,15.87891455,137.16,137.12,7.2927161]
[1765552235056,15.87891455,137.16,137.12,0.72]
[1765552235231,15.87891455,137.16,137.12,7.29268433]
[1765552235439,16.54891455,137.16,137.13,7.29231126]
[1765552235832,16.54891455,137.16,137.11,7.29341404]
[1765552236053,23.83982198,137.16,137.11,7.29341404]
[1765552236279,23.83982198,137.16,137.11,8.01341404]
[1765552236439,8.65,137.16,137.11,26.24694915]
[1765552236636,7.98,137.16,137.11,26.24694915]
[1765552236862,7.98,137.16,137.12,0.72]
[1765552237044,7.89891455,137.14,137.11,7.29341404]
[1765552237568,7.89891455,137.15,137.11,7.29341404]
[1765552237738,7.89891455,137.15,137.11,0.72]
[1765552237939,15.87891455,137.16,137.11,0.72]
[1765552238134,16.54891455,137.16,137.11,0.72]
[1765552238355,7.89891455,137.15,137.11,0.72]
[1765552238564,16.54891455,137.16,137.11,0.72]
[1765552238961,7.98,137.16,137.11,8.61891455]
[1765552239269,15.87891455,137.16,137.11,0.72]
[1765552239566,16.54891455,137.16,137.11,0.72]
[1765552239741,7.89891455,137.15,137.11,0.72]
[1765552239946,7.89891455,137.15,137.12,7.29288214]
[1765552240160,7.89891455,137.17,137.12,7.29288214]
[1765552240465,7.98,137.16,137.13,0.72]
[1765552240674,7.89891455,137.18,137.13,0.72]
[1765552240980,16.09876321,137.2,137.14,7.89891455]
[1765552240981,16.54891455,137.2,137.14,7.89891455]
[1765552241267,7.89891455,137.17,137.12,7.29288214]
[1765552241761,7.98,137.2,137.15,7.89891455]
[1765552241963,15.87891455,137.2,137.16,7.29075532]
[1765552242142,7.98,137.2,137.16,8.01075532]
[1765552242545,7.98,137.22,137.17,8.61891455]
[1765552242753,15.87891455,137.22,137.17,0.72]
[1765552242952,7.98,137.22,137.18,8.61891455]
[1765552243272,7.98,137.22,137.2,7.89891455]
[1765552243570,7.98,137.22,137.18,0.72]
[1765552243571,7.89891455,137.25,137.19,8.61891455]
[1765552243742,7.98,137.25,137.2,7.89891455]
[1765552243941,15.26602514,137.25,137.21,7.28809853]
[1765552244141,15.26602514,137.25,137.21,8.00809853]
[1765552244955,15.26602514,137.25,137.21,15.90118311]
[1765552245156,7.98,137.25,137.22,8.61308458]
[1765552245360,7.98,137.25,137.23,0.72]
[1765552245674,7.98,137.25,137.22,8.61308458]
[1765552246477,7.98,137.25,137.21,25.50834486]
[1765552246673,7.98,137.25,137.21,15.90118311]
[1765552246855,7.98,137.25,137.22,0.72]
[1765552247362,7.98,137.25,137.22,8.00751375]
[1765552247881,0.67,137.24,137.2,7.28855209]
[1765552248095,7.89308458,137.23,137.18,15.18277354]
[1765552248378,7.89308458,137.23,137.19,7.28909141]
[1765552248549,34.16107614,137.25,137.19,8.00891023]
[1765552248748,15.9461399,137.25,137.18,0.72]
[1765552248952,23.83922448,137.25,137.2,7.89308458]
[1765552249178,15.9461399,137.25,137.2,7.89308458]
[1765552249375,0.68,137.24,137.2,7.89308458]
[1765552249565,7.28558064,137.26,137.22,7.89308458]
[1765552249766,7.98,137.24,137.21,7.89308458]
[1765552249963,7.98,137.24,137.22,7.89308458]
[1765552250276,7.98,137.24,137.23,7.89308458]
[1765552250582,7.98,137.24,137.22,7.89308458]
[1765552251680,7.98,137.24,137.22,15.18046678]
[1765552252082,7.98,137.24,137.23,7.89308458]
[1765552252376,7.98,137.24,137.22,15.18046678]
[1765552252579,15.26652847,137.24,137.2,7.28857092]
[1765552252770,15.26652847,137.24,137.21,7.89308458]
[1765552252976,7.98,137.24,137.21,7.89308458]
[1765552253177,7.98,137.24,137.21,0.72]
[1765552253489,7.98,137.24,137.22,7.89308458]
[1765552254060,7.98,137.24,137.23,7.89308458]
[1765552254567,7.28491353,137.27,137.21,7.28783255]
[1765552254769,16.7030295,137.25,137.2,7.28847499]
[1765552255169,8.57308458,137.24,137.19,15.18214069]
[1765552255476,15.86002872,137.24,137.19,7.89308458]